[Event "*** Titled Tuesday 3|2 Blitz"]
[Site "Chess.com"]
[Date "2015.08.04"]
[Round "7"]
[White "GMHess"]
[Black "Ar4uha"]
[Result "1-0"]
[WhiteElo "2538"]
[BlackElo "2406"]
[TimeControl "180+2"]
[EndTime "13:00:40 PDT"]
[Termination "GMHess won by resignation"]

1. c4 {[%clk 0:03:01.9]} 1... Nf6 {[%clk 0:02:56.2]} 2. Nc3 {[%clk 0:03:00.9]}
2... e6 {[%clk 0:02:55.9]} 3. Nf3 {[%clk 0:02:59.1]} 3... Bb4 {[%clk 0:02:55.6]}
4. Qc2 {[%clk 0:02:52.8]} 4... b6 {[%clk 0:02:57]} 5. a3 {[%clk 0:02:52.8]} 5...
Bxc3 {[%clk 0:02:58.3]} 6. Qxc3 {[%clk 0:02:54.7]} 6... Bb7 {[%clk 0:02:58.9]}
7. d3 {[%clk 0:02:55.2]} 7... d6 {[%clk 0:02:56.8]} 8. g3 {[%clk 0:02:53.1]}
8... O-O {[%clk 0:02:48.7]} 9. Bg2 {[%clk 0:02:53.9]} 9... e5 {[%clk 0:02:50.3]}
10. O-O {[%clk 0:02:54.6]} 10... a5 {[%clk 0:02:48.6]} 11. Bg5 {[%clk
0:02:49.5]} 11... h6 {[%clk 0:02:44.8]} 12. Bxf6 {[%clk 0:02:43.4]} 12... Qxf6
{[%clk 0:02:45.9]} 13. b4 {[%clk 0:02:44.7]} 13... Nc6 {[%clk 0:02:44.9]} 14.
Rfe1 {[%clk 0:02:31.1]} 14... axb4 {[%clk 0:02:41.5]} 15. axb4 {[%clk
0:02:31.6]} 15... Nd4 {[%clk 0:02:42.7]} 16. Nxd4 {[%clk 0:02:29.5]} 16... exd4
{[%clk 0:02:44.3]} 17. Qd2 {[%clk 0:02:20.3]} 17... Bxg2 {[%clk 0:02:43.4]} 18.
Kxg2 {[%clk 0:02:22.2]} 18... Qe5 {[%clk 0:02:42.2]} 19. Qf4 {[%clk 0:02:08.3]}
19... Rxa1 {[%clk 0:01:57]} 20. Qxe5 {[%clk 0:02:07]} 20... Rxe1 {[%clk
0:01:57.9]} 21. Qe7 {[%clk 0:02:08.1]} 21... c5 {[%clk 0:00:57.1]} 22. b5 {[%clk
0:02:07.3]} 22... Ra8 {[%clk 0:00:50]} 23. Qxd6 {[%clk 0:02:06.1]} 23... Ra2
{[%clk 0:00:48.6]} 24. Qxb6 {[%clk 0:01:54.6]} 24... Rexe2 {[%clk 0:00:49]} 25.
Qb8+ {[%clk 0:01:54.6]} 25... Kh7 {[%clk 0:00:49.9]} 26. Qf4 {[%clk 0:01:56.3]}
26... Rab2 {[%clk 0:00:43.1]} 27. Qxf7 {[%clk 0:01:55]} 27... Red2 {[%clk
0:00:35.8]} 28. h4 {[%clk 0:01:51.9]} 28... Rb3 {[%clk 0:00:27.6]} 29. Qf5+
{[%clk 0:01:43.4]} 29... Kg8 {[%clk 0:00:25.7]} 30. Qxc5 {[%clk 0:01:44.8]}
30... Rbxd3 {[%clk 0:00:21.2]} 31. b6 {[%clk 0:01:40.3]} 31... Rb3 {[%clk
0:00:20.5]} 32. Qc8+ {[%clk 0:01:40.8]} 32... Kh7 {[%clk 0:00:20.6]} 33. c5
{[%clk 0:01:42.4]} 33... Rbb2 {[%clk 0:00:12.3]} 34. Qf5+ {[%clk 0:01:42.3]}
34... Kg8 {[%clk 0:00:13.7]} 35. c6 {[%clk 0:01:41.7]} 35... Rxb6 {[%clk
0:00:08.5]} 36. c7 {[%clk 0:01:41]} 1-0

[Event "*** Titled Tuesday 3|2 Blitz"]
[Site "Chess.com"]
[Date "2015.08.04"]
[Round "7"]
[White "goldaxe"]
[Black "eugeniusjr"]
[Result "1-0"]
[WhiteElo "2166"]
[BlackElo "1936"]
[TimeControl "180+2"]
[EndTime "13:01:12 PDT"]
[Termination "goldaxe won on time"]

1. e4 {[%clk 0:03:01.9]} 1... c5 {[%clk 0:03:00.7]} 2. Nf3 {[%clk 0:03:03.1]}
2... g6 {[%clk 0:03:02.1]} 3. d4 {[%clk 0:03:03.2]} 3... cxd4 {[%clk 0:03:04]}
4. Nxd4 {[%clk 0:03:04.6]} 4... Nc6 {[%clk 0:03:04.9]} 5. Nc3 {[%clk 0:03:05.4]}
5... Bg7 {[%clk 0:03:05.4]} 6. Be3 {[%clk 0:03:06.9]} 6... Nf6 {[%clk
0:03:06.3]} 7. Bc4 {[%clk 0:03:08]} 7... O-O {[%clk 0:03:06.7]} 8. Bb3 {[%clk
0:03:07.5]} 8... a5 {[%clk 0:03:01.2]} 9. O-O {[%clk 0:03:06.1]} 9... a4 {[%clk
0:02:59.2]} 10. Nxa4 {[%clk 0:03:07]} 10... Nxe4 {[%clk 0:02:58.4]} 11. Nb5
{[%clk 0:03:08.4]} 11... d6 {[%clk 0:02:13.4]} 12. Nb6 {[%clk 0:02:58.4]} 12...
Ra6 {[%clk 0:02:05]} 13. Nc4 {[%clk 0:02:51.7]} 13... d5 {[%clk 0:01:58.8]} 14.
Nd2 {[%clk 0:02:51.4]} 14... Nd6 {[%clk 0:01:48]} 15. Nxd6 {[%clk 0:02:43.5]}
15... Qxd6 {[%clk 0:01:49.9]} 16. c3 {[%clk 0:02:44.1]} 16... b5 {[%clk
0:01:34.7]} 17. Nf3 {[%clk 0:02:43.8]} 17... Rd8 {[%clk 0:01:28.6]} 18. Re1
{[%clk 0:02:37.3]} 18... b4 {[%clk 0:01:24.6]} 19. Nd4 {[%clk 0:02:29.3]} 19...
Nxd4 {[%clk 0:01:09]} 20. cxd4 {[%clk 0:02:29.8]} 20... e5 {[%clk 0:01:03.1]}
21. dxe5 {[%clk 0:02:11.1]} 21... Bxe5 {[%clk 0:01:05]} 22. Bd4 {[%clk 0:02:12]}
22... Bxh2+ {[%clk 0:01:03.3]} 23. Kh1 {[%clk 0:02:13.6]} 23... Bf4 {[%clk
0:00:44.9]} 24. Qf3 {[%clk 0:02:07.4]} 24... g5 {[%clk 0:00:38.4]} 25. g3 {[%clk
0:02:03.5]} 25... Bd2 {[%clk 0:00:29.9]} 26. Re5 {[%clk 0:02:03.9]} 26... g4
{[%clk 0:00:23.8]} 27. Qe2 {[%clk 0:01:57.7]} 27... Bh6 {[%clk 0:00:18.2]} 28.
Rxd5 {[%clk 0:01:28.5]} 28... Bb7 {[%clk 0:00:13.1]} 29. Kg1 {[%clk 0:01:06.9]}
29... Bxd5 {[%clk 0:00:11.3]} 30. Bxd5 {[%clk 0:01:06.8]} 30... Qxd5 {[%clk
0:00:10.3]} 31. Qxa6 {[%clk 0:01:07.8]} 31... Qxd4 {[%clk 0:00:09.6]} 32. Qxh6
{[%clk 0:01:08.4]} 32... Rd6 {[%clk 0:00:06]} 33. Qg5+ {[%clk 0:01:07.8]} 33...
Kf8 {[%clk 0:00:05.3]} 34. Rc1 {[%clk 0:01:06.2]} 1-0

[Event "*** Titled Tuesday 3|2 Blitz"]
[Site "Chess.com"]
[Date "2015.08.04"]
[Round "7"]
[White "jefferyx"]
[Black "stepanosinovsky"]
[Result "1-0"]
[WhiteElo "2432"]
[BlackElo "2262"]
[TimeControl "180+2"]
[EndTime "13:01:25 PDT"]
[Termination "jefferyx won on time"]

1. b4 {[%clk 0:03:01.9]} 1... e5 {[%clk 0:02:59.9]} 2. a3 {[%clk 0:03:02.5]}
2... d5 {[%clk 0:02:58.9]} 3. Bb2 {[%clk 0:03:03.7]} 3... Bd6 {[%clk 0:02:58.3]}
4. e3 {[%clk 0:03:04.2]} 4... Nf6 {[%clk 0:02:58.1]} 5. Nf3 {[%clk 0:03:05.6]}
5... Nbd7 {[%clk 0:02:56.7]} 6. d4 {[%clk 0:03:07]} 6... Qe7 {[%clk 0:02:53.4]}
7. c4 {[%clk 0:03:06.7]} 7... e4 {[%clk 0:02:34.5]} 8. Nfd2 {[%clk 0:03:07.3]}
8... c6 {[%clk 0:02:35]} 9. Nc3 {[%clk 0:03:08]} 9... a6 {[%clk 0:02:32.3]} 10.
g4 {[%clk 0:03:05.5]} 10... h6 {[%clk 0:02:26.2]} 11. h4 {[%clk 0:03:03]} 11...
Nf8 {[%clk 0:02:07.2]} 12. Rg1 {[%clk 0:03:03.2]} 12... Be6 {[%clk 0:01:54.5]}
13. g5 {[%clk 0:03:02.7]} 13... hxg5 {[%clk 0:01:53.2]} 14. hxg5 {[%clk
0:03:04.6]} 14... N6d7 {[%clk 0:01:52.4]} 15. Qb3 {[%clk 0:03:06.1]} 15... f5
{[%clk 0:01:01]} 16. gxf6 {[%clk 0:02:25.1]} 16... Nxf6 {[%clk 0:01:00.6]} 17.
b5 {[%clk 0:02:24.9]} 17... axb5 {[%clk 0:00:51.4]} 18. cxb5 {[%clk 0:02:25.1]}
18... Rh2 {[%clk 0:00:46.4]} 19. Na4 {[%clk 0:01:52.2]} 19... Ng4 {[%clk
0:00:38]} 20. O-O-O {[%clk 0:01:38]} 20... Nxf2 {[%clk 0:00:37.1]} 21. Re1
{[%clk 0:01:37.5]} 21... Nd3+ {[%clk 0:00:31.7]} 22. Bxd3 {[%clk 0:01:37.8]}
22... exd3 {[%clk 0:00:32.7]} 23. Nb6 {[%clk 0:01:38.7]} 23... Ra5 {[%clk
0:00:23.2]} 24. a4 {[%clk 0:01:39.9]} 24... Bb4 {[%clk 0:00:20.4]} 25. Bc3
{[%clk 0:01:37.5]} 25... Bxc3 {[%clk 0:00:18.5]} 26. Qxc3 {[%clk 0:01:39.4]}
26... cxb5 {[%clk 0:00:19.3]} 27. Rxg7 {[%clk 0:01:36.7]} 27... Qxg7 {[%clk
0:00:12.6]} 28. Qxa5 {[%clk 0:01:38.3]} 28... Qc7+ {[%clk 0:00:13.3]} 29. Nbc4
{[%clk 0:01:37.3]} 29... Qxa5 {[%clk 0:00:10.9]} 30. Nxa5 {[%clk 0:01:39.2]}
30... bxa4 {[%clk 0:00:12.5]} 31. Nxb7 {[%clk 0:01:39.4]} 31... Nd7 {[%clk
0:00:13.7]} 32. Rd1 {[%clk 0:01:35.6]} 32... Re2 {[%clk 0:00:14]} 33. Nf1 {[%clk
0:01:36.2]} 33... Bf5 {[%clk 0:00:14.4]} 34. Nd6+ {[%clk 0:01:37.2]} 34... Kd8
{[%clk 0:00:15]} 35. Nxf5 {[%clk 0:01:39.1]} 35... Rc2+ {[%clk 0:00:14.9]} 36.
Kb1 {[%clk 0:01:40.4]} 36... a3 {[%clk 0:00:15.9]} 37. Ka1 {[%clk 0:01:33.4]}
37... Nb6 {[%clk 0:00:16.4]} 38. Nd6 {[%clk 0:01:10.9]} 1-0

[Event "*** Titled Tuesday 3|2 Blitz"]
[Site "Chess.com"]
[Date "2015.08.04"]
[Round "7"]
[White "Tesla37"]
[Black "LyonBeast"]
[Result "1-0"]
[WhiteElo "2554"]
[BlackElo "2691"]
[TimeControl "180+2"]
[EndTime "13:01:53 PDT"]
[Termination "Tesla37 won by resignation"]

1. e4 {[%clk 0:03:01.9]} 1... c5 {[%clk 0:02:59.2]} 2. Nf3 {[%clk 0:03:03]} 2...
d6 {[%clk 0:02:58.8]} 3. d4 {[%clk 0:03:04.1]} 3... cxd4 {[%clk 0:03:00.7]} 4.
Nxd4 {[%clk 0:03:05.7]} 4... Nf6 {[%clk 0:03:02.4]} 5. Nc3 {[%clk 0:03:07.2]}
5... a6 {[%clk 0:03:03.9]} 6. a3 {[%clk 0:03:08.3]} 6... g6 {[%clk 0:03:03.8]}
7. Bc4 {[%clk 0:03:07.8]} 7... Bg7 {[%clk 0:03:04.7]} 8. Ba2 {[%clk 0:03:08.9]}
8... O-O {[%clk 0:03:05.3]} 9. O-O {[%clk 0:03:10]} 9... Nc6 {[%clk 0:03:06]}
10. Nde2 {[%clk 0:03:09.3]} 10... b5 {[%clk 0:03:05.3]} 11. Re1 {[%clk
0:03:03.3]} 11... Bb7 {[%clk 0:03:06.3]} 12. Bg5 {[%clk 0:03:01.7]} 12... e6
{[%clk 0:03:01.7]} 13. Qd2 {[%clk 0:03:01.2]} 13... Qc7 {[%clk 0:03:01.6]} 14.
Rad1 {[%clk 0:03:00.1]} 14... Rad8 {[%clk 0:02:59.7]} 15. Qf4 {[%clk 0:02:59.4]}
15... Qe7 {[%clk 0:02:50.4]} 16. Qh4 {[%clk 0:02:59.9]} 16... h6 {[%clk
0:02:32.2]} 17. Bxh6 {[%clk 0:03:00.4]} 17... Nxe4 {[%clk 0:02:33.4]} 18. Qf4
{[%clk 0:02:43.5]} 18... Bxh6 {[%clk 0:02:25]} 19. Qxh6 {[%clk 0:02:43.5]} 19...
Qg5 {[%clk 0:02:25.8]} 20. Qxg5 {[%clk 0:02:40.1]} 20... Nxg5 {[%clk 0:02:27.7]}
21. h4 {[%clk 0:02:40.8]} 21... Nh7 {[%clk 0:02:29.1]} 22. Ne4 {[%clk
0:02:42.1]} 22... d5 {[%clk 0:02:30.4]} 23. Nc5 {[%clk 0:02:43.1]} 23... Bc8
{[%clk 0:02:31.9]} 24. c3 {[%clk 0:02:42.4]} 24... Nf6 {[%clk 0:02:29.8]} 25.
Nd4 {[%clk 0:02:43.2]} 25... Ne7 {[%clk 0:02:23.8]} 26. f3 {[%clk 0:02:42.7]}
26... Kg7 {[%clk 0:02:24.5]} 27. Kf2 {[%clk 0:02:42.2]} 27... Rh8 {[%clk
0:02:24.7]} 28. g3 {[%clk 0:02:43.5]} 28... Nf5 {[%clk 0:02:23]} 29. Bb1 {[%clk
0:02:35.5]} 29... Nd6 {[%clk 0:02:20.9]} 30. b3 {[%clk 0:02:36.8]} 30... Rhe8
{[%clk 0:02:19.2]} 31. Re5 {[%clk 0:02:34.1]} 31... Nd7 {[%clk 0:02:18.7]} 32.
Ncxe6+ {[%clk 0:02:18.8]} 32... fxe6 {[%clk 0:02:17.3]} 33. Nxe6+ {[%clk
0:02:18.7]} 33... Kf6 {[%clk 0:02:00.1]} 34. Rexd5 {[%clk 0:02:19.6]} 34... Rxe6
{[%clk 0:02:01.3]} 35. Rxd6 {[%clk 0:02:20.8]} 35... Re8 {[%clk 0:02:02.9]} 36.
Rxe6+ {[%clk 0:02:19.3]} 36... Rxe6 {[%clk 0:02:04.8]} 37. g4 {[%clk 0:02:16.3]}
37... Ne5 {[%clk 0:01:55]} 38. g5+ {[%clk 0:02:11.4]} 38... Kg7 {[%clk
0:01:51.4]} 39. Be4 {[%clk 0:02:12.2]} 39... Nf7 {[%clk 0:01:45.5]} 40. Bd5
{[%clk 0:02:07.5]} 40... Rd6 {[%clk 0:01:46.6]} 41. Rd4 {[%clk 0:02:08.3]} 41...
Bf5 {[%clk 0:01:40.9]} 42. Ke3 {[%clk 0:02:00.4]} 42... Rd7 {[%clk 0:01:31.5]}
43. c4 {[%clk 0:01:48.1]} 43... Ne5 {[%clk 0:01:24.7]} 44. c5 {[%clk 0:01:37.4]}
44... a5 {[%clk 0:01:13]} 45. Be4 {[%clk 0:01:24.5]} 45... Rf7 {[%clk
0:01:05.4]} 46. f4 {[%clk 0:01:14.9]} 46... Bxe4 {[%clk 0:01:03.2]} 47. Kxe4
{[%clk 0:01:09.6]} 47... Nc6 {[%clk 0:01:03.8]} 48. Rd6 {[%clk 0:01:10.7]} 48...
Rc7 {[%clk 0:01:04.7]} 49. Kd5 {[%clk 0:01:07.1]} 49... Ne7+ {[%clk 0:01:05.1]}
50. Ke6 {[%clk 0:01:08.3]} 50... Rxc5 {[%clk 0:00:54.2]} 51. Rd7 {[%clk
0:01:08.8]} 51... Rc3 {[%clk 0:00:51.4]} 52. Rxe7+ {[%clk 0:01:09.3]} 52... Kf8
{[%clk 0:00:53]} 53. Kf6 {[%clk 0:01:03.7]} 53... Rf3 {[%clk 0:00:52.3]} 1-0

[Event "*** Titled Tuesday 3|2 Blitz"]
[Site "Chess.com"]
[Date "2015.08.04"]
[Round "7"]
[White "Prolta"]
[Black "fpawn"]
[Result "0-1"]
[WhiteElo "1696"]
[BlackElo "2090"]
[TimeControl "180+2"]
[EndTime "13:02:01 PDT"]
[Termination "fpawn won by resignation"]

1. Nf3 {[%clk 0:03:01.9]} 1... d5 {[%clk 0:03:00.1]} 2. d4 {[%clk 0:03:02.9]}
2... c6 {[%clk 0:03:01.2]} 3. Bf4 {[%clk 0:03:04.3]} 3... Nd7 {[%clk 0:02:59.4]}
4. e3 {[%clk 0:03:05.7]} 4... e6 {[%clk 0:02:58.4]} 5. c4 {[%clk 0:03:06.2]}
5... Ngf6 {[%clk 0:02:58.9]} 6. Nc3 {[%clk 0:03:05.3]} 6... Bb4 {[%clk
0:02:56.8]} 7. Qb3 {[%clk 0:03:00.1]} 7... Qe7 {[%clk 0:02:51.6]} 8. a3 {[%clk
0:02:52.5]} 8... Bd6 {[%clk 0:02:48.1]} 9. Bxd6 {[%clk 0:02:49.6]} 9... Qxd6
{[%clk 0:02:50]} 10. c5 {[%clk 0:02:51.2]} 10... Qe7 {[%clk 0:02:50.1]} 11. Qc2
{[%clk 0:02:49.2]} 11... e5 {[%clk 0:02:44.6]} 12. Be2 {[%clk 0:02:37.7]} 12...
O-O {[%clk 0:02:42.6]} 13. O-O {[%clk 0:02:37.9]} 13... e4 {[%clk 0:02:38.8]}
14. Nd2 {[%clk 0:02:36.3]} 14... Re8 {[%clk 0:02:38]} 15. Rae1 {[%clk
0:02:33.3]} 15... Nf8 {[%clk 0:02:38.5]} 16. f4 {[%clk 0:02:33.9]} 16... exf3
{[%clk 0:02:37]} 17. Bxf3 {[%clk 0:02:34.2]} 17... Ng6 {[%clk 0:02:33.9]} 18. b4
{[%clk 0:02:24.5]} 18... Qd8 {[%clk 0:02:24.9]} 19. Qd3 {[%clk 0:02:09.3]} 19...
Be6 {[%clk 0:02:12.8]} 20. e4 {[%clk 0:02:09.6]} 20... dxe4 {[%clk 0:02:05.5]}
21. Ncxe4 {[%clk 0:01:58.9]} 21... Nxe4 {[%clk 0:02:05.9]} 22. Nxe4 {[%clk
0:01:57.8]} 22... Bf5 {[%clk 0:01:57.1]} 23. Qc3 {[%clk 0:01:34.7]} 23... Bxe4
{[%clk 0:01:51]} 24. Rxe4 {[%clk 0:01:28.4]} 24... Rxe4 {[%clk 0:01:48.2]} 25.
Bxe4 {[%clk 0:01:30.3]} 25... Qh4 {[%clk 0:01:44.5]} 26. Bxg6 {[%clk 0:01:15]}
26... hxg6 {[%clk 0:01:45.4]} 27. Qf3 {[%clk 0:00:43.1]} 27... Qxd4+ {[%clk
0:01:44.4]} 28. Kh1 {[%clk 0:00:44.6]} 28... Qd7 {[%clk 0:01:43.2]} 29. h3
{[%clk 0:00:36.6]} 29... Re8 {[%clk 0:01:42]} 30. Qb3 {[%clk 0:00:27.4]} 30...
Qe6 {[%clk 0:01:38.4]} 31. Qf3 {[%clk 0:00:24.8]} 31... a6 {[%clk 0:01:37.3]}
32. Kg1 {[%clk 0:00:15.2]} 32... Qe3+ {[%clk 0:01:35.5]} 33. Qxe3 {[%clk
0:00:16.7]} 33... Rxe3 {[%clk 0:01:33.9]} 34. Rf3 {[%clk 0:00:18.6]} 34... Rxf3
{[%clk 0:01:32.7]} 35. gxf3 {[%clk 0:00:20.5]} 35... g5 {[%clk 0:01:31.8]} 36.
Kf2 {[%clk 0:00:22.4]} 36... f6 {[%clk 0:01:32.3]} 37. Kg3 {[%clk 0:00:24.3]}
37... Kf7 {[%clk 0:01:32.6]} 38. Kg4 {[%clk 0:00:26.2]} 38... Kg6 {[%clk
0:01:29]} 39. f4 {[%clk 0:00:28.1]} 39... gxf4 {[%clk 0:01:27.9]} 40. Kxf4
{[%clk 0:00:30]} 40... Kh5 {[%clk 0:01:28.6]} 41. Kg3 {[%clk 0:00:30.2]} 41...
Kg5 {[%clk 0:01:26.4]} 42. a4 {[%clk 0:00:31.6]} 42... Kf5 {[%clk 0:01:23.6]}
43. a5 {[%clk 0:00:31.8]} 43... Kg5 {[%clk 0:01:24.7]} 44. h4+ {[%clk
0:00:30.9]} 44... Kf5 {[%clk 0:01:22.2]} 45. Kf3 {[%clk 0:00:31.1]} 45... g6
{[%clk 0:01:23.1]} 46. Kg3 {[%clk 0:00:32.3]} 46... Ke4 {[%clk 0:01:23.2]} 47.
Kg4 {[%clk 0:00:33.1]} 47... Kd4 {[%clk 0:01:14.2]} 48. Kf4 {[%clk 0:00:33.7]}
48... Kc4 {[%clk 0:01:14.5]} 0-1

[Event "*** Titled Tuesday 3|2 Blitz"]
[Site "Chess.com"]
[Date "2015.08.04"]
[Round "7"]
[White "silverback96"]
[Black "KyronGriffith"]
[Result "0-1"]
[WhiteElo "1871"]
[BlackElo "2223"]
[TimeControl "180+2"]
[EndTime "13:02:03 PDT"]
[Termination "KyronGriffith won by checkmate"]

1. d4 {[%clk 0:00:05]} 1... Nf6 {[%clk 0:02:53]} 2. c4 {[%clk 0:00:06.6]} 2...
c5 {[%clk 0:02:52.3]} 3. g3 {[%clk 0:00:08.3]} 3... cxd4 {[%clk 0:02:49.8]} 4.
Qxd4 {[%clk 0:00:10]} 4... Nc6 {[%clk 0:02:50.2]} 5. Qh4 {[%clk 0:00:11.6]} 5...
e6 {[%clk 0:02:47.3]} 6. Bg2 {[%clk 0:00:13.1]} 6... Be7 {[%clk 0:02:48]} 7. Nf3
{[%clk 0:00:14.3]} 7... d5 {[%clk 0:02:48.5]} 8. O-O {[%clk 0:00:15.3]} 8... Ne4
{[%clk 0:02:43.1]} 9. Qh3 {[%clk 0:00:12.2]} 9... dxc4 {[%clk 0:02:31.2]} 10.
Nc3 {[%clk 0:00:08.7]} 10... Nxc3 {[%clk 0:02:30.6]} 11. bxc3 {[%clk 0:00:10]}
11... Qa5 {[%clk 0:02:31]} 12. Be3 {[%clk 0:00:09.8]} 12... Qxc3 {[%clk
0:02:26]} 13. Rac1 {[%clk 0:00:11]} 13... Qb4 {[%clk 0:02:25.4]} 14. Qg4 {[%clk
0:00:12.4]} 14... Bf6 {[%clk 0:02:04.5]} 15. Rxc4 {[%clk 0:00:13.8]} 15... Qa5
{[%clk 0:02:03.7]} 16. Nd2 {[%clk 0:00:15]} 16... Ne5 {[%clk 0:01:55.4]} 17. Ne4
{[%clk 0:00:16.5]} 17... Nxg4 {[%clk 0:01:56.1]} 18. Nd6+ {[%clk 0:00:17.7]}
18... Ke7 {[%clk 0:01:40.8]} 19. Bc5 {[%clk 0:00:18.9]} 19... Qxc5 {[%clk
0:01:41.3]} 20. Rxc5 {[%clk 0:00:19.6]} 20... Kxd6 {[%clk 0:01:41.8]} 21. Rc4
{[%clk 0:00:21.2]} 21... Ne5 {[%clk 0:01:41.3]} 22. Rd1+ {[%clk 0:00:18.6]}
22... Ke7 {[%clk 0:01:41.4]} 23. Rc7+ {[%clk 0:00:20.2]} 23... Kf8 {[%clk
0:01:08.4]} 24. f4 {[%clk 0:00:20.6]} 24... Ng4 {[%clk 0:01:06]} 25. a4 {[%clk
0:00:21.6]} 25... g6 {[%clk 0:01:05.6]} 26. Rd3 {[%clk 0:00:18]} 26... Kg7
{[%clk 0:01:04.1]} 27. h3 {[%clk 0:00:19.6]} 27... Nh6 {[%clk 0:01:02.5]} 28. g4
{[%clk 0:00:19.7]} 28... Rd8 {[%clk 0:01:03.9]} 29. Rdc3 {[%clk 0:00:20.5]}
29... Bxc3 {[%clk 0:01:04.1]} 30. Rxc3 {[%clk 0:00:22.2]} 30... Bd7 {[%clk
0:01:03.8]} 31. Rc7 {[%clk 0:00:22.2]} 31... Bxa4 {[%clk 0:01:02.3]} 32. Bxb7
{[%clk 0:00:23.1]} 32... Rab8 {[%clk 0:01:01.8]} 33. e4 {[%clk 0:00:24.6]} 33...
Rd7 {[%clk 0:01:00.9]} 34. Rxd7 {[%clk 0:00:24.6]} 34... Bxd7 {[%clk 0:01:02.8]}
35. Ba6 {[%clk 0:00:26.1]} 35... Bb5 {[%clk 0:01:03]} 36. Kf2 {[%clk 0:00:28]}
36... Bxa6 {[%clk 0:01:03.6]} 37. Kg3 {[%clk 0:00:28.9]} 37... Rb3+ {[%clk
0:01:05.1]} 38. Kh4 {[%clk 0:00:29.8]} 38... f6 {[%clk 0:01:03.3]} 39. e5 {[%clk
0:00:31.3]} 39... fxe5 {[%clk 0:01:02.8]} 40. fxe5 {[%clk 0:00:32.9]} 40... Be2
{[%clk 0:00:58.7]} 41. g5 {[%clk 0:00:34]} 41... Nf5# {[%clk 0:00:59.7]} 0-1

[Event "*** Titled Tuesday 3|2 Blitz"]
[Site "Chess.com"]
[Date "2015.08.04"]
[Round "7"]
[White "1stSecond"]
[Black "Storne89"]
[Result "0-1"]
[WhiteElo "2376"]
[BlackElo "2520"]
[TimeControl "180+2"]
[EndTime "13:02:04 PDT"]
[Termination "Storne89 won by resignation"]

1. d4 {[%clk 0:03:01]} 1... Nf6 {[%clk 0:03:00]} 2. c4 {[%clk 0:03:02.3]} 2...
c5 {[%clk 0:02:55.3]} 3. d5 {[%clk 0:03:03]} 3... b5 {[%clk 0:02:56.5]} 4. cxb5
{[%clk 0:03:03.5]} 4... a6 {[%clk 0:02:54.3]} 5. bxa6 {[%clk 0:03:05]} 5... g6
{[%clk 0:02:55.4]} 6. Nc3 {[%clk 0:03:05.7]} 6... Bg7 {[%clk 0:02:54.2]} 7. e4
{[%clk 0:03:06.8]} 7... O-O {[%clk 0:02:53.1]} 8. Nf3 {[%clk 0:03:07.8]} 8...
Qa5 {[%clk 0:02:54]} 9. Nd2 {[%clk 0:03:06.6]} 9... Bxa6 {[%clk 0:02:52.4]} 10.
Bxa6 {[%clk 0:03:06.9]} 10... Qxa6 {[%clk 0:02:53.3]} 11. Qe2 {[%clk 0:03:02.1]}
11... e6 {[%clk 0:02:52.8]} 12. Nc4 {[%clk 0:02:57.4]} 12... Re8 {[%clk
0:02:19.3]} 13. Be3 {[%clk 0:02:57.4]} 13... exd5 {[%clk 0:02:12.4]} 14. exd5
{[%clk 0:02:57.5]} 14... Ne4 {[%clk 0:02:13.5]} 15. Nxe4 {[%clk 0:02:49.4]}
15... Rxe4 {[%clk 0:02:14]} 16. Rc1 {[%clk 0:02:50.3]} 16... d6 {[%clk
0:02:02.8]} 17. O-O {[%clk 0:02:49.4]} 17... Nd7 {[%clk 0:02:04.4]} 18. Qc2
{[%clk 0:02:40.2]} 18... Rae8 {[%clk 0:01:55.6]} 19. a4 {[%clk 0:02:38.8]} 19...
Nf6 {[%clk 0:01:53.7]} 20. Rfd1 {[%clk 0:02:30.9]} 20... Ng4 {[%clk 0:01:53.6]}
21. Rd3 {[%clk 0:02:11.6]} 21... Nxe3 {[%clk 0:01:31.1]} 22. Rxe3 {[%clk
0:02:11.7]} 22... Rxe3 {[%clk 0:01:29.8]} 23. fxe3 {[%clk 0:02:08.1]} 23... Rb8
{[%clk 0:01:30.3]} 24. b3 {[%clk 0:02:07.6]} 24... Re8 {[%clk 0:01:26.7]} 25. e4
{[%clk 0:01:55.7]} 25... Bd4+ {[%clk 0:01:25.9]} 26. Kh1 {[%clk 0:01:57.1]}
26... h5 {[%clk 0:01:25]} 27. Rd1 {[%clk 0:01:57.9]} 27... Bg7 {[%clk
0:01:22.7]} 28. Qd3 {[%clk 0:01:54.4]} 28... Rd8 {[%clk 0:01:18.5]} 29. Qf3
{[%clk 0:01:54.6]} 29... Qb7 {[%clk 0:01:18.5]} 30. Rf1 {[%clk 0:01:54.5]} 30...
Qe7 {[%clk 0:01:17.1]} 31. a5 {[%clk 0:01:46.5]} 31... Bd4 {[%clk 0:01:14.1]}
32. Qd3 {[%clk 0:01:35.5]} 32... Rb8 {[%clk 0:01:13.3]} 33. Nb6 {[%clk
0:01:33.2]} 33... Be5 {[%clk 0:01:11.1]} 34. Qf3 {[%clk 0:01:23.4]} 34... Kg7
{[%clk 0:01:10.1]} 35. g3 {[%clk 0:01:23.2]} 35... Rb7 {[%clk 0:01:05.4]} 36.
Kg2 {[%clk 0:01:17.7]} 36... Qg5 {[%clk 0:01:03.2]} 37. Nc4 {[%clk 0:01:17.6]}
37... Qe7 {[%clk 0:00:55.9]} 38. h4 {[%clk 0:01:16.5]} 38... Bd4 {[%clk
0:00:56.4]} 39. g4 {[%clk 0:01:09.1]} 39... hxg4 {[%clk 0:00:56.3]} 40. Qxg4
{[%clk 0:01:02.7]} 40... Rxb3 {[%clk 0:00:56.7]} 41. Qf4 {[%clk 0:01:02.7]}
41... Rc3 {[%clk 0:00:48]} 42. Nxd6 {[%clk 0:00:59.9]} 42... f6 {[%clk
0:00:41.7]} 43. Nb5 {[%clk 0:00:49.8]} 43... Rc2+ {[%clk 0:00:43]} 44. Kh1
{[%clk 0:00:49.7]} 44... Be5 {[%clk 0:00:44.2]} 45. Qg4 {[%clk 0:00:48.6]} 45...
c4 {[%clk 0:00:41.6]} 46. h5 {[%clk 0:00:48.4]} 46... Rh2+ {[%clk 0:00:42.3]}
47. Kg1 {[%clk 0:00:49.6]} 47... Qc5+ {[%clk 0:00:43.8]} 0-1